fUST/lending_fUST_20250211
["ID","MTS","AMOUNT","RATE_DAILY","PERIOD"]
[352679394,1739235032740,-500.0,0.00010855,2]
[352679395,1739235032749,-500.0,0.00010855,2]
[352679396,1739235032758,-500.0,0.00010855,2]
[352679397,1739235032767,-500.0,0.00010855,2]
[352679398,1739235032779,-372.05696532,0.00010855,2]
[352679399,1739235032789,-500.0,0.00010855,2]
[352679400,1739235032798,-505.80517186,0.00010857,2]
[352679401,1739235032807,-77.86589113,0.00010857,2]
[352679444,1739235037832,-4556.85728925,0.00010747,2]
[352679445,1739235037842,-477.3905884,0.00010855,2]
[352679446,1739235037851,-317.62710887,0.00010857,2]
[352679447,1739235037861,-627.23465739,0.00010858,2]
[352679448,1739235037870,-19386.15821559,0.00010858,2]
[352679449,1739235037879,-153.0,0.000109,2]
[352679450,1739235037888,-1118.13558302,0.00010908,2]
[352679451,1739235037898,-209.8437108,0.00010957,2]
[352679452,1739235037907,-283.86558787,0.00010957,2]
[352679453,1739235037921,-417.50316715,0.00010958,2]
[352679454,1739235037930,-500.0,0.00010958,2]
[352679455,1739235037939,-500.0,0.00010958,2]
[352679456,1739235037949,-437.11816085,0.00010958,2]
[352679457,1739235037958,-500.0,0.00010958,2]
[352679458,1739235037967,-500.0,0.00010958,2]
[352679459,1739235037976,-206.53333869,0.00010958,2]
[352679460,1739235037986,-312.67526972,0.00010958,2]
[352679461,1739235037997,-500.0,0.00010958,2]
[352679462,1739235038006,-500.87538263,0.00010958,2]
[352679463,1739235038015,-152.87189063,0.00010958,2]
[352679464,1739235038026,-500.0,0.00010958,2]
[352679465,1739235038035,-500.0,0.00010958,2]
[352679466,1739235038044,-500.0,0.00010958,2]
[352679467,1739235038053,-500.0,0.00010958,2]
[352679468,1739235038062,-500.0,0.00010958,2]
[352679469,1739235038071,-500.0,0.00010958,2]
[352679470,1739235038080,-409.40052937,0.00010958,2]
[352679471,1739235038090,-501.04886462,0.00010958,2]
[352679472,1739235038098,-500.0,0.00010958,2]
[352679473,1739235038107,-500.0,0.00010958,2]
[352679474,1739235038116,-500.0,0.00010958,2]
[352679475,1739235038126,-500.0,0.00010958,2]
[352679476,1739235038135,-500.0,0.00010958,2]
[352679477,1739235038143,-500.0,0.00010958,2]
[352679478,1739235038152,-500.0,0.00010958,2]
[352679479,1739235038162,-500.0,0.00010958,2]
[352679480,1739235038171,-504.93192374,0.00010958,2]
[352679481,1739235038179,-500.0,0.00010958,2]
[352679482,1739235038188,-250.66624,0.00010958,2]
[352679483,1739235038197,-500.0,0.00010958,2]
[352679484,1739235038206,-500.0,0.00010958,2]
[352679485,1739235038216,-500.0,0.00010958,2]
[352679486,1739235038225,-500.0,0.00010958,2]
[352679487,1739235038234,-500.0,0.00010958,2]
[352679488,1739235038243,-500.0,0.00010958,2]
[352679489,1739235038252,-500.0,0.00010958,2]
[352679490,1739235038261,-500.0,0.00010958,2]
[352679491,1739235038270,-500.0,0.00010958,2]
[352679492,1739235038280,-500.0,0.00010958,2]
[352679493,1739235038290,-500.0,0.00010958,2]
[352679494,1739235038299,-500.0,0.00010958,2]
[352679495,1739235038307,-500.0,0.00010958,2]
[352679496,1739235038316,-306.7054976,0.00010958,2]
[352679497,1739235038331,-193.2945024,0.00010958,2]
[352679498,1739235038340,-442.54054327,0.00010958,2]
[352679507,1739235040092,-252.90258593,0.00010857,2]
[352679508,1739235040101,-57.45945673,0.00010958,2]
[352679509,1739235040111,-500.0,0.00010958,2]
[352679510,1739235040120,-500.0,0.00010958,2]
[352679511,1739235040130,-500.0,0.00010958,2]
[352679512,1739235040140,-500.0,0.00010958,2]
[352679513,1739235040150,-500.0,0.00010958,2]
[352679514,1739235040159,-500.0,0.00010958,2]
[352679515,1739235040169,-500.0,0.00010958,2]
[352679516,1739235040178,-500.0,0.00010958,2]
[352679517,1739235040187,-500.0,0.00010958,2]
[352679518,1739235040201,-500.0,0.00010958,2]
[352679519,1739235040212,-624.86218227,0.00010958,2]
[352679520,1739235040221,-500.0,0.00010958,2]
[352679521,1739235040230,-500.0,0.00010958,2]
[352679522,1739235040240,-500.0,0.00010958,2]
[352679523,1739235040250,-500.0,0.00010958,2]
[352679524,1739235040259,-513.66846655,0.00010958,2]
[352679525,1739235040269,-500.0,0.00010958,2]
[352679526,1739235040282,-500.0,0.00010958,2]
[352679527,1739235040291,-500.0,0.00010958,2]
[352679528,1739235040300,-500.0,0.00010958,2]
[352679529,1739235040311,-500.0,0.00010958,2]
[352679530,1739235040321,-500.0,0.00010958,2]
[352679531,1739235040331,-500.0,0.00010958,2]
[352679532,1739235040340,-500.0,0.00010958,2]
[352679533,1739235040350,-500.0,0.00010958,2]
[352679534,1739235040360,-500.0,0.00010958,2]
[352679535,1739235040369,-500.0,0.00010958,2]
[352679536,1739235040379,-500.0,0.00010958,2]
[352679537,1739235040388,-500.0,0.00010958,2]
[352679538,1739235040397,-500.0,0.00010958,2]
[352679539,1739235040407,-500.0,0.00010958,2]
[352679540,1739235040416,-500.0,0.00010958,2]
[352679541,1739235040427,-500.0,0.00010958,2]
[352679542,1739235040436,-500.0,0.00010958,2]
[352679543,1739235040445,-500.0,0.00010958,2]
[352679544,1739235040455,-500.0,0.00010958,2]
[352679545,1739235040464,-500.0,0.00010958,2]
[352679546,1739235040473,-500.0,0.00010958,2]
[352679547,1739235040483,-500.0,0.00010958,2]
[352679548,1739235040492,-501.92494887,0.00010958,2]
[352679549,1739235040501,-500.0,0.00010958,2]
[352679550,1739235040510,-500.0,0.00010958,2]
[352679551,1739235040519,-500.0,0.00010958,2]
[352679552,1739235040530,-500.0,0.00010958,2]
[352679553,1739235040540,-500.0,0.00010958,2]
[352679554,1739235040550,-500.99202263,0.00010958,2]
[352679555,1739235040560,-502.82575272,0.00010958,2]
[352679556,1739235040569,-500.0,0.00010958,2]
[352679557,1739235040579,-500.0,0.00010958,2]
[352679558,1739235040588,-500.0,0.00010958,2]
[352679559,1739235040598,-500.0,0.00010958,2]
[352679560,1739235040608,-500.0,0.00010958,2]
[352679561,1739235040618,-500.0,0.00010958,2]
[352679562,1739235040627,-500.0,0.00010958,2]
[352679563,1739235040703,-500.0,0.00010958,2]
[352679564,1739235040713,-669.55,0.00010958,2]
[352679565,1739235040723,-500.0,0.00010958,2]
[352679566,1739235040733,-500.0,0.00010958,2]
[352679567,1739235040742,-500.0,0.00010958,2]
[352679568,1739235040752,-500.0,0.00010958,2]
[352679569,1739235040761,-500.0,0.00010958,2]
[352679570,1739235040771,-500.0,0.00010958,2]
[352679571,1739235040781,-500.0,0.00010958,2]
[352679572,1739235040791,-500.0,0.00010958,2]
[352679573,1739235040800,-500.0,0.00010958,2]
[352679574,1739235040810,-500.0,0.00010958,2]
[352679575,1739235040820,-327.26788206,0.00010958,2]
[352679576,1739235040830,-500.0,0.00010958,2]
[352679577,1739235040840,-500.0,0.00010958,2]
[352679578,1739235040850,-500.0,0.00010958,2]
[352679579,1739235040859,-500.0,0.00010958,2]
[352679580,1739235040869,-500.0,0.00010958,2]
[352679581,1739235040879,-500.0,0.00010958,2]
[352679582,1739235040889,-500.0,0.00010958,2]
[352679583,1739235040899,-500.0,0.00010958,2]
[352679584,1739235040908,-500.0,0.00010958,2]
[352679585,1739235040922,-500.0,0.00010958,2]
[352679586,1739235040932,-500.0,0.00010958,2]
[352679587,1739235040942,-500.0,0.00010958,2]
[352679588,1739235040952,-500.0,0.00010958,2]
[352679589,1739235040961,-500.0,0.00010958,2]
[352679590,1739235040971,-500.0,0.00010958,2]
[352679591,1739235040981,-537.89956918,0.00010958,2]
[352679592,1739235040990,-500.0,0.00010958,2]
[352679593,1739235041000,-500.0,0.00010958,2]
[352679594,1739235041009,-500.0,0.00010958,2]
[352679595,1739235041019,-500.0,0.00010958,2]
[352679596,1739235041029,-500.0,0.00010958,2]
[352679597,1739235041038,-500.0,0.00010958,2]
[352679598,1739235041048,-500.0,0.00010958,2]
[352679599,1739235041058,-500.0,0.00010958,2]
[352679600,1739235041067,-500.0,0.00010958,2]
[352679601,1739235041078,-500.0,0.00010958,2]
[352679602,1739235041088,-500.0,0.00010958,2]
[352679603,1739235041098,-507.0133825,0.00010958,2]
[352679604,1739235041107,-534.75489811,0.00010958,2]
[352679605,1739235041117,-500.0,0.00010958,2]
[352679606,1739235041127,-500.0,0.00010958,2]
[352679607,1739235041137,-500.0,0.00010958,2]
[352679608,1739235041147,-500.0,0.00010958,2]
[352679609,1739235041156,-500.0,0.00010958,2]
[352679610,1739235041166,-500.0,0.00010958,2]
[352679611,1739235041182,-500.0,0.00010958,2]
[352679612,1739235041202,-500.0,0.00010958,2]
[352679613,1739235041219,-199.10212565,0.00010958,2]
[352679614,1739235041240,-500.0,0.00010958,2]
[352679615,1739235041259,-500.0,0.00010958,2]
[352679616,1739235041278,-500.0,0.00010958,2]
[352679617,1739235041296,-500.0,0.00010958,2]
[352679618,1739235041311,-500.0,0.00010958,2]
[352679619,1739235041327,-500.0,0.00010958,2]
[352679620,1739235041346,-379.56996426,0.00010958,2]
[352679621,1739235041365,-500.0,0.00010958,2]
[352679622,1739235041378,-643.12,0.00010958,2]
[352679623,1739235041392,-500.0,0.00010958,2]
[352679624,1739235041410,-500.0,0.00010958,2]
[352679625,1739235041425,-500.0,0.00010958,2]
[352679626,1739235041440,-500.0,0.00010958,2]
[352679627,1739235041455,-500.0,0.00010958,2]
[352679628,1739235041470,-500.0,0.00010958,2]
[352679629,1739235041485,-500.0,0.00010958,2]
[352679630,1739235041500,-500.0,0.00010958,2]
[352679631,1739235041516,-500.0,0.00010958,2]
[352679632,1739235041531,-500.0,0.00010958,2]
[352679633,1739235041546,-500.0,0.00010958,2]
[352679634,1739235041562,-500.0,0.00010958,2]
[352679635,1739235041576,-500.0,0.00010958,2]
[352679636,1739235041591,-500.0,0.00010958,2]
[352679637,1739235041606,-500.0,0.00010958,2]
[352679638,1739235041622,-500.0,0.00010958,2]
[352679639,1739235041638,-500.0,0.00010958,2]
[352679640,1739235041653,-500.0,0.00010958,2]
[352679641,1739235041669,-500.0,0.00010958,2]
[352679642,1739235041684,-726.67,0.00010958,2]
[352679643,1739235041698,-500.0,0.00010958,2]
[352679644,1739235041713,-500.0,0.00010958,2]
[352679645,1739235041728,-500.0,0.00010958,2]
[352679646,1739235041742,-500.0,0.00010958,2]
[352679647,1739235041757,-500.0,0.00010958,2]
[352679648,1739235041772,-816.61,0.00010958,2]
[352679649,1739235041787,-500.0,0.00010958,2]
[352679650,1739235041802,-500.0,0.00010958,2]
[352679651,1739235041817,-500.0,0.00010958,2]
[352679652,1739235041830,-670.56,0.00010958,2]
[352679653,1739235041845,-500.0,0.00010958,2]
[352679654,1739235041860,-500.0,0.00010958,2]
[352679655,1739235041874,-500.0,0.00010958,2]
[352679656,1739235041889,-500.0,0.00010958,2]
[352679657,1739235041905,-503.08534033,0.00010958,2]
[352679658,1739235041923,-500.0,0.00010958,2]
[352679659,1739235042036,-500.0,0.00010958,2]
[352679660,1739235042054,-647.33,0.00010958,2]
[352679661,1739235042064,-500.0,0.00010958,2]
[352679662,1739235042074,-500.0,0.00010958,2]
[352679663,1739235042083,-249.33142221,0.00010958,2]
[352679911,1739235212657,1000.3324692,8.214e-05,2]
[352680250,1739236238006,-5000.0,9.556e-05,2]
[352680252,1739236238015,-300.0,9.847e-05,2]
[352680254,1739236238025,-32628.4002829,9.848e-05,2]
[352680256,1739236238034,-500.0,9.848e-05,2]
[352680258,1739236238043,-500.0,9.848e-05,2]
[352680260,1739236238052,-500.0,9.848e-05,2]
[352680262,1739236238062,-500.0,9.848e-05,2]
[352680264,1739236238071,-152.45077392,9.848e-05,2]
[352680266,1739236238082,-500.0,9.848e-05,2]
[352680267,1739236238091,-500.0,9.848e-05,2]
[352680268,1739236238100,-500.0,9.848e-05,2]
[352680269,1739236238109,-500.0,9.848e-05,2]
[352680270,1739236238118,-500.0,9.848e-05,2]
[352680271,1739236238127,-500.0,9.848e-05,2]
[352680272,1739236238136,-500.0,9.848e-05,2]
[352680273,1739236238145,-500.0,9.848e-05,2]
[352680274,1739236238155,-500.0,9.848e-05,2]
[352680275,1739236238163,-500.0,9.848e-05,2]
[352680276,1739236238173,-174.12893339,9.848e-05,2]
[352680277,1739236238182,-24900.0,9.849e-05,2]
[352680278,1739236238191,-3547.2228785,9.862e-05,2]
[352680279,1739236238200,-231.7452226,9.882e-05,2]
[352680280,1739236238209,-400.0,0.00010685,2]
[352680281,1739236238218,-200.0,0.000108,2]
[352680282,1739236238227,-200.0,0.000108,3]
[352680285,1739236238237,-200.0,0.000108,2]
[352680286,1739236238246,-200.0,0.000108,2]
[352680287,1739236238255,-420.0,0.00010831,2]
[352680288,1739236238264,-7438.69753278,0.00010835,2]
[352680289,1739236238273,-523.8684476,0.00010848,2]
[352680290,1739236238282,-200.0,0.000109,3]
[352680291,1739236238291,-185.0,0.000109,3]
[352680293,1739236238301,-184.00000001,0.000109,4]
[352680294,1739236238311,-1000.0,0.000109,2]
[352680295,1739236238320,-500.0,0.00010955,2]
[352680297,1739236238329,-164.16844993,0.00010955,2]
[352680299,1739236238338,-316.395,0.00010955,2]
[352680301,1739236238347,-1072773.96317961,0.00010956,2]
[352680303,1739236238360,-1774.93,0.00010956,2]
[352680306,1739236238376,-2465.75861875,0.00010956,2]
[352680599,1739237432631,-2485.81030428,9.439e-05,2]
[352680600,1739237432641,-791.8916591,9.535e-05,2]
[352680601,1739237432650,-300.0,9.786e-05,2]
[352680602,1739237432659,-24900.0,9.787e-05,2]
[352680603,1739237432668,-691.0166521,9.992e-05,2]
[352680604,1739237432677,-253.116,9.992e-05,2]
[352680605,1739237432687,-2680.04782058,0.0001,2]
[352680606,1739237432696,-400.0,0.00010685,2]
[352680607,1739237432705,-420.0,0.00010765,2]
[352680608,1739237432714,-349.2456317,0.00010848,2]
[352680609,1739237432723,-1424.67412042,0.00010901,4]
[352680610,1739237432732,-276.40173791,0.0001095,2]
[352680612,1739237432741,-241.56988149,0.00010955,2]
[352680613,1739237432750,-500.0,0.00010955,2]
[352680614,1739237432759,-22985.3121153,0.00010956,2]
[352680616,1739237432769,-464.91791495,0.00010956,2]
[352680617,1739237432778,-252.90258592,0.00010957,2]
[352680619,1739237432787,-15354.75724514,0.00010957,2]
[352680621,1739237432800,-667.41545074,0.00010957,2]
[352680624,1739237432814,-6532.35507398,0.00010957,2]
[352680661,1739237438404,-513.69918779,0.00010957,2]
[352680732,1739237596403,300.0,0.00016,120]
[352680792,1739238632622,-300.0,9.93e-05,2]
[352680794,1739238632632,-3077.09790217,9.932e-05,2]
[352681365,1739238638491,-876.9399101,9.932e-05,2]
[352681366,1739238638571,-20945.96218773,9.932e-05,2]
[352681367,1739238638580,-500.0,9.958e-05,2]
[352681368,1739238638589,-500.0,9.958e-05,2]
[352681369,1739238638599,-500.0,9.958e-05,2]
[352681370,1739238638609,-500.0,9.958e-05,2]
[352681371,1739238638619,-500.0,9.958e-05,2]
[352681372,1739238638628,-500.0,9.958e-05,2]
[352681373,1739238638637,-500.0,9.958e-05,2]
[352681374,1739238638647,-500.0,9.958e-05,2]
[352681375,1739238638657,-500.0,9.958e-05,2]
[352681376,1739238638666,-500.0,9.958e-05,2]
[352681377,1739238638676,-500.0,9.958e-05,2]
[352681379,1739238638685,-500.0,9.958e-05,2]
[352681380,1739238638694,-500.0,9.958e-05,2]
[352681382,1739238638704,-500.0,9.958e-05,2]
[352681383,1739238638713,-500.0,9.958e-05,2]
[352681384,1739238638722,-500.0,9.958e-05,2]
[352681385,1739238638732,-500.0,9.958e-05,2]
[352681386,1739238638747,-500.0,9.958e-05,2]
[352681388,1739238638757,-500.0,9.958e-05,2]
[352681390,1739238638766,-500.0,9.958e-05,2]
[352681392,1739238638775,-500.0,9.958e-05,2]
[352681394,1739238638785,-500.0,9.958e-05,2]
[352681396,1739238638794,-500.0,9.958e-05,2]
[352681398,1739238638803,-500.0,9.958e-05,2]
[352681400,1739238638813,-500.0,9.958e-05,2]
[352681402,1739238638823,-500.0,9.958e-05,2]
[352681404,1739238638833,-500.0,9.958e-05,2]
[352681406,1739238638842,-179.22302943,9.958e-05,2]
[352681408,1739238638855,-320.77697057,9.958e-05,2]
[352681410,1739238638864,-500.0,9.958e-05,2]
[352681412,1739238638873,-500.0,9.958e-05,2]
[352681414,1739238638882,-392.05412725,9.958e-05,2]
[352681540,1739238670061,232.0,0.00016,120]
[352681541,1739238701934,16156.34965206,0.00014,30]
[352681542,1739238701959,3000.0,0.00014,30]
[352681543,1739238701982,50000.0,0.00014,30]
[352681544,1739238702004,50000.0,0.00014,30]
[352681545,1739239138603,2000.0,8e-05,2]
[352681546,1739239173189,254.5964176,0.00016,120]
[352681610,1739239832999,-300.0,9.829e-05,2]
[352681612,1739239833009,-129.14,9.83e-05,2]
[352681619,1739239833069,-6054.36371247,9.83e-05,2]
[352681627,1739239833144,-18112.82604142,9.83e-05,2]
[352682166,1739239838574,-304.82972928,9.83e-05,2]
[352682175,1739239838651,-298.84051683,9.83e-05,2]
[352682177,1739239838663,-107.94587275,9.958e-05,2]
[352682179,1739239838672,-500.0,9.958e-05,2]
[352682181,1739239838682,-500.0,9.958e-05,2]
[352682183,1739239838692,-500.0,9.958e-05,2]
[352682185,1739239838702,-500.0,9.958e-05,2]
[352682187,1739239838711,-500.0,9.958e-05,2]
[352682189,1739239838722,-500.0,9.958e-05,2]
[352682192,1739239838732,-500.0,9.958e-05,2]
[352682194,1739239838741,-500.0,9.958e-05,2]
[352682196,1739239838752,-500.0,9.958e-05,2]
[352682199,1739239838761,-500.0,9.958e-05,2]
[352682202,1739239838771,-500.0,9.958e-05,2]
[352682203,1739239838781,-500.0,9.958e-05,2]
[352682206,1739239838791,-500.0,9.958e-05,2]
[352682208,1739239838801,-500.0,9.958e-05,2]
[352682209,1739239838811,-500.0,9.958e-05,2]
[352682212,1739239838821,-500.0,9.958e-05,2]
[352682214,1739239838830,-500.0,9.958e-05,2]
[352682216,1739239838841,-500.0,9.958e-05,2]
[352682218,1739239838850,-500.0,9.958e-05,2]
[352682220,1739239838864,-516.38,9.958e-05,2]
[352682222,1739239838875,-500.0,9.958e-05,2]
[352682223,1739239838885,-500.0,9.958e-05,2]
[352682226,1739239838895,-500.0,9.958e-05,2]
[352682227,1739239838905,-500.0,9.958e-05,2]
[352682229,1739239838916,-500.0,9.958e-05,2]
[352682232,1739239838927,-500.0,9.958e-05,2]
[352682234,1739239838938,-500.0,9.958e-05,2]
[352682236,1739239838948,-500.0,9.958e-05,2]
[352682238,1739239838958,-500.0,9.958e-05,2]
[352682240,1739239838968,-500.0,9.958e-05,2]
[352682242,1739239838978,-500.0,9.958e-05,2]
[352682244,1739239838988,-500.0,9.958e-05,2]
[352682246,1739239838998,-500.0,9.958e-05,2]
[352682248,1739239839008,-500.0,9.958e-05,2]
[352682250,1739239839018,-500.0,9.958e-05,2]
[352682252,1739239839027,-500.0,9.958e-05,2]
[352682254,1739239839037,-500.0,9.958e-05,2]
[352682256,1739239839047,-500.0,9.958e-05,2]
[352682258,1739239839056,-500.0,9.958e-05,2]
[352682260,1739239839066,-500.0,9.958e-05,2]
[352682262,1739239839075,-500.0,9.958e-05,2]
[352682264,1739239839084,-500.0,9.958e-05,2]
[352682266,1739239839094,-500.0,9.958e-05,2]
[352682268,1739239839103,-500.0,9.958e-05,2]
[352682270,1739239839113,-500.0,9.958e-05,2]
[352682271,1739239839122,-500.0,9.958e-05,2]
[352682273,1739239839133,-500.0,9.958e-05,2]
[352682275,1739239839143,-500.0,9.958e-05,2]
[352682277,1739239839153,-500.0,9.958e-05,2]
[352682279,1739239839167,-500.0,9.958e-05,2]
[352682281,1739239839178,-500.0,9.958e-05,2]
[352682283,1739239839188,-500.0,9.958e-05,2]
[352682285,1739239839197,-500.0,9.958e-05,2]
[352682287,1739239839206,-452.79,9.958e-05,2]
[352682289,1739239839216,-500.0,9.958e-05,2]
[352682291,1739239839226,-320.63,9.958e-05,2]
[352682293,1739239839237,-686.0,0.0001,2]
[352682295,1739239839246,-2007.0,0.0001,2]
[352682297,1739239839256,-2005.0,0.0001,2]
[352682299,1739239839265,-2005.0,0.0001,2]
[352682301,1739239839274,-2005.0,0.0001,2]
[352682303,1739239839283,-400.0,0.00010685,2]
[352682305,1739239839292,-153.0,0.000107,2]
[352682307,1739239839302,-215.860309,0.000107,2]
[352682309,1739239839311,-2000.0,0.000108,2]
[352682311,1739239839321,-2000.0,0.000108,3]
[352682313,1739239839331,-2000.0,0.000108,4]
[352682315,1739239839340,-2007.28,0.000108,5]
[352682317,1739239839349,-420.0,0.00010812,2]
[352682320,1739239839360,-233.4641849,0.00010847,2]
[352682321,1739239839370,-1975.40734953,0.00010858,2]
[352682324,1739239839379,-151.88244004,0.0001095,2]
[352682325,1739239839388,-217.76885623,0.0001095,2]
[352682327,1739239839398,-259559.27434789,0.00010957,2]
[352682330,1739239839411,-589.80977953,0.00010957,2]
[352682475,1739239840810,-13268.2024785,0.00010318,2]
[352682477,1739239840819,-6343.5975215,0.00010627,2]
[352682480,1739239840840,-6924.604957,0.00010627,2]
[352682482,1739239840849,-13268.2024785,0.00010873,2]
[352682484,1739239840866,-83654.40874868,0.00010957,2]
[352683000,1739239846965,-215.860309,0.000107,2]
[352683002,1739239846975,-520.10340095,0.00010957,2]
[352683005,1739239846987,-107831.43689875,0.00010957,2]
[352685046,1739241031939,-300.0,9.968e-05,2]
[352685047,1739241031949,-4655.92764999,9.969e-05,2]
[352685058,1739241037803,-20244.07235001,9.969e-05,2]
[352685059,1739241037815,-400.0,0.00010685,2]
[352685060,1739241037825,-546.1379954,0.00010847,2]
[352685061,1739241037834,-1777.86661455,0.00010858,2]
[352685062,1739241037843,-809.94039835,0.00010897,2]
[352685063,1739241037853,-387.24107624,0.00010956,2]
[352685064,1739241037862,-769569.33102052,0.00010957,2]
[352685065,1739241037877,-887.50816521,0.00010957,2]
[352685066,1739241037888,-37592.80846553,0.00010957,2]
[352685070,1739241037915,-5718.05797934,0.00010957,2]
[352685072,1739241037926,-9326.41075859,0.00010957,2]
[352685117,1739241039967,-3232.05449018,0.00010957,2]
[352685701,1739241045942,-7012.96453208,0.00010957,2]
[352685703,1739241045952,-370.0,0.00010958,2]
[352685705,1739241045962,-586.99929745,0.00010958,2]
[352685707,1739241045971,-623.41966286,0.00010958,2]
[352685709,1739241045981,-500.18085422,0.00010958,2]
[352685711,1739241045990,-500.0,0.00010958,2]
[352685713,1739241045999,-598.58797029,0.00010958,2]
[352685715,1739241046009,-500.0,0.00010958,2]
[352685716,1739241046018,-501.10586311,0.00010958,2]
[352685719,1739241046028,-349.07280046,0.00010958,2]
[352685721,1739241046038,-500.0,0.00010958,2]
[352685723,1739241046047,-500.0,0.00010958,2]
[352685725,1739241046057,-500.0,0.00010958,2]
[352685727,1739241046069,-500.0,0.00010958,2]
[352685729,1739241046078,-530.67910914,0.00010958,2]
[352685740,1739241046173,-500.0,0.00010958,2]
[352685742,1739241046183,-238.91887548,0.00010958,2]
[352685744,1739241046193,-500.0,0.00010958,2]
[352685746,1739241046203,-500.0,0.00010958,2]
[352685748,1739241046212,-500.0,0.00010958,2]
[352685750,1739241046222,-500.0,0.00010958,2]
[352685752,1739241046231,-500.0,0.00010958,2]
[352685754,1739241046241,-500.64125387,0.00010958,2]
[352685756,1739241046250,-500.0,0.00010958,2]
[352685758,1739241046259,-309.23447552,0.00010958,2]
[352685760,1739241046268,-500.0,0.00010958,2]
[352685762,1739241046277,-500.0,0.00010958,2]
[352685764,1739241046286,-500.0,0.00010958,2]
[352685766,1739241046295,-500.0,0.00010958,2]
[352685768,1739241046305,-529.4025081,0.00010958,2]
[352685770,1739241046314,-500.73365045,0.00010958,2]
[352685772,1739241046325,-500.0,0.00010958,2]
[352685774,1739241046334,-500.92595492,0.00010958,2]
[352685775,1739241046343,-500.0,0.00010958,2]
[352685777,1739241046352,-500.0,0.00010958,2]
[352685779,1739241046361,-453.6850382,0.00010958,2]
[352685781,1739241046371,-500.0,0.00010958,2]
[352685783,1739241046381,-500.0,0.00010958,2]
[352685785,1739241046390,-500.0,0.00010958,2]
[352685787,1739241046399,-500.0,0.00010958,2]
[352685790,1739241046409,-500.0,0.00010958,2]
[352685792,1739241046418,-500.0,0.00010958,2]
[352685793,1739241046427,-501.08490058,0.00010958,2]
[352685795,1739241046437,-500.0,0.00010958,2]
[352685797,1739241046446,-500.0,0.00010958,2]
[352685799,1739241046455,-500.0,0.00010958,2]
[352685801,1739241046468,-500.95300771,0.00010958,2]
[352685803,1739241046477,-452.00394414,0.00010958,2]
[352685805,1739241046486,-500.0,0.00010958,2]
[352685807,1739241046495,-502.7028096,0.00010958,2]
[352685809,1739241046506,-500.35000682,0.00010958,2]
[352685811,1739241046515,-500.63539004,0.00010958,2]
[352685813,1739241046524,-500.0,0.00010958,2]
[352685815,1739241046533,-500.0,0.00010958,2]
[352685817,1739241046543,-500.36205002,0.00010958,2]
[352685819,1739241046553,-369.01992795,0.00010958,2]
[352685821,1739241046562,-500.68773656,0.00010958,2]
[352685823,1739241046573,-500.0,0.00010958,2]
[352685825,1739241046582,-530.16,0.00010958,2]
[352685827,1739241046592,-500.0,0.00010958,2]
[352685829,1739241046602,-609.57485848,0.00010958,2]
[352685831,1739241046612,-500.0,0.00010958,2]
[352685833,1739241046622,-500.0,0.00010958,2]
[352685835,1739241046632,-500.0,0.00010958,2]
[352685838,1739241046642,-500.0,0.00010958,2]
[352685840,1739241046651,-500.0,0.00010958,2]
[352685842,1739241046661,-501.92192062,0.00010958,2]
[352685844,1739241046670,-500.0,0.00010958,2]
[352685846,1739241046679,-176.55585631,0.00010958,2]
[352685847,1739241046689,-500.0,0.00010958,2]